[Event "*** Titled Tuesday Blitz"]
[Site "Chess.com"]
[Date "2021.04.20"]
[Round "5"]
[White "KarateBaby"]
[Black "Redzishchess"]
[Result "1-0"]
[WhiteElo "2220"]
[BlackElo "2335"]
[TimeControl "180+1"]
[EndTime "10:55:02 PDT"]
[Termination "KarateBaby won by resignation"]

1. Nf3 {[%clk 0:02:30]} 1... c5 {[%clk 0:02:58.7]} 2. c4 {[%clk 0:02:30.9]} 2...
Nc6 {[%clk 0:02:58.6]} 3. Nc3 {[%clk 0:02:29]} 3... g6 {[%clk 0:02:58.2]} 4. e3
{[%clk 0:02:26.2]} 4... Bg7 {[%clk 0:02:57.9]} 5. d4 {[%clk 0:02:27.1]} 5...
cxd4 {[%clk 0:02:58.3]} 6. exd4 {[%clk 0:02:24.5]} 6... d6 {[%clk 0:02:37.9]} 7.
d5 {[%clk 0:02:23.7]} 7... Ne5 {[%clk 0:02:36.9]} 8. Nxe5 {[%clk 0:02:23.5]}
8... Bxe5 {[%clk 0:02:37.8]} 9. Be2 {[%clk 0:02:22.7]} 9... h5 {[%clk
0:02:27.1]} 10. O-O {[%clk 0:02:07.5]} 10... Nh6 {[%clk 0:02:24.2]} 11. Be3
{[%clk 0:01:15.1]} 11... Ng4 {[%clk 0:02:21.3]} 12. Bxg4 {[%clk 0:01:13.4]}
12... hxg4 {[%clk 0:02:18.5]} 13. g3 {[%clk 0:01:11.4]} 13... Qd7 {[%clk
0:02:08.7]} 14. Bd4 {[%clk 0:01:05]} 14... Qf5 {[%clk 0:01:36.8]} 15. Nb5 {[%clk
0:01:00.3]} 15... Kf8 {[%clk 0:01:23.7]} 16. Nc7 {[%clk 0:00:53.3]} 16... Rb8
{[%clk 0:01:17.6]} 17. Bxa7 {[%clk 0:00:32.6]} 17... Qh5 {[%clk 0:01:04.5]} 18.
h4 {[%clk 0:00:32.1]} 18... g5 {[%clk 0:01:04.9]} 19. Kg2 {[%clk 0:00:24.6]}
19... gxh4 {[%clk 0:01:04.5]} 20. Rh1 {[%clk 0:00:24.4]} 20... h3+ {[%clk
0:00:32.3]} 21. Kh2 {[%clk 0:00:21.7]} 21... f5 {[%clk 0:00:31.3]} 22. Bxb8
{[%clk 0:00:18.7]} 22... f4 {[%clk 0:00:31.3]} 23. Rg1 {[%clk 0:00:17.9]} 23...
Qf5 {[%clk 0:00:29.2]} 24. Qd2 {[%clk 0:00:15]} 24... Rh7 {[%clk 0:00:16.9]} 25.
Rad1 {[%clk 0:00:11.6]} 25... Rf7 {[%clk 0:00:16.9]} 26. Ba7 {[%clk 0:00:09.2]}
26... Qe4 {[%clk 0:00:16.2]} 27. Qd3 {[%clk 0:00:08.1]} 27... Qf3 {[%clk
0:00:14.7]} 28. Qxf3 {[%clk 0:00:06.9]} 28... gxf3 {[%clk 0:00:15.6]} 29. Ne6+
{[%clk 0:00:06.1]} 29... Bxe6 {[%clk 0:00:15.2]} 30. dxe6 {[%clk 0:00:07]} 30...
Rf6 {[%clk 0:00:15]} 31. gxf4 {[%clk 0:00:07.9]} 31... Bxf4+ {[%clk 0:00:15.9]}
32. Kxh3 {[%clk 0:00:08.2]} 32... Rh6+ {[%clk 0:00:16.1]} 33. Kg4 {[%clk
0:00:09.1]} 33... Be5 {[%clk 0:00:16.6]} 34. Kxf3 {[%clk 0:00:10]} 34... Rxe6
{[%clk 0:00:17.1]} 35. Rg4 {[%clk 0:00:09.1]} 35... Rf6+ {[%clk 0:00:18]} 36.
Ke2 {[%clk 0:00:09.7]} 36... Bxb2 {[%clk 0:00:18.9]} 37. Bd4 {[%clk 0:00:09.8]}
37... Re6+ {[%clk 0:00:18.5]} 38. Kf1 {[%clk 0:00:09.6]} 38... Ba3 {[%clk
0:00:18.7]} 39. Rf4+ {[%clk 0:00:10.1]} 39... Ke8 {[%clk 0:00:18.5]} 40. Re1
{[%clk 0:00:10.7]} 40... Kd7 {[%clk 0:00:19.4]} 41. Rxe6 {[%clk 0:00:10.9]}
41... Kxe6 {[%clk 0:00:20.3]} 42. Re4+ {[%clk 0:00:11.8]} 42... Kd7 {[%clk
0:00:19.7]} 43. Be3 {[%clk 0:00:11.7]} 43... e5 {[%clk 0:00:20.6]} 44. Rh4
{[%clk 0:00:12.4]} 44... Bb4 {[%clk 0:00:19.9]} 45. Rh7+ {[%clk 0:00:13.3]}
45... Kc6 {[%clk 0:00:20.8]} 46. c5 {[%clk 0:00:13.8]} 46... Bxc5 {[%clk
0:00:21.1]} 47. Bxc5 {[%clk 0:00:14]} 47... dxc5 {[%clk 0:00:21.5]} 48. Ke2
{[%clk 0:00:14.9]} 48... b5 {[%clk 0:00:22.3]} 49. Kd3 {[%clk 0:00:15.5]} 49...
c4+ {[%clk 0:00:23.2]} 50. Kc3 {[%clk 0:00:16.1]} 1-0

[Event "*** Titled Tuesday Blitz"]
[Site "Chess.com"]
[Date "2021.04.20"]
[Round "5"]
[White "CURRUTACO59"]
[Black "Kolle05"]
[Result "0-1"]
[WhiteElo "2187"]
[BlackElo "2336"]
[TimeControl "180+1"]
[EndTime "10:55:02 PDT"]
[Termination "Kolle05 won on time"]

1. Nf3 {[%clk 0:03:00.9]} 1... Nf6 {[%clk 0:02:59.8]} 2. e3 {[%clk 0:03:00.1]}
2... g6 {[%clk 0:02:58.2]} 3. b3 {[%clk 0:02:59.4]} 3... Bg7 {[%clk 0:02:58.8]}
4. Bb2 {[%clk 0:02:59]} 4... O-O {[%clk 0:02:59.4]} 5. d4 {[%clk 0:02:58.1]}
5... d5 {[%clk 0:02:55.5]} 6. Be2 {[%clk 0:02:43.9]} 6... c5 {[%clk 0:02:54]} 7.
O-O {[%clk 0:02:23.3]} 7... Nc6 {[%clk 0:02:52]} 8. dxc5 {[%clk 0:02:21.2]} 8...
Qa5 {[%clk 0:02:36.8]} 9. a3 {[%clk 0:02:20]} 9... Qxc5 {[%clk 0:02:36.5]} 10.
b4 {[%clk 0:02:13.7]} 10... Qb6 {[%clk 0:02:36.2]} 11. Nbd2 {[%clk 0:02:09.1]}
11... Rd8 {[%clk 0:02:08.4]} 12. Qc1 {[%clk 0:02:05]} 12... Bf5 {[%clk
0:01:51.6]} 13. c4 {[%clk 0:02:03.5]} 13... dxc4 {[%clk 0:01:45.8]} 14. Nxc4
{[%clk 0:02:02.8]} 14... Qc7 {[%clk 0:01:44.8]} 15. Nce5 {[%clk 0:01:46.2]}
15... Rac8 {[%clk 0:01:38.7]} 16. Nxc6 {[%clk 0:01:33.9]} 16... Qxc6 {[%clk
0:01:39.6]} 17. Qxc6 {[%clk 0:01:13]} 17... Rxc6 {[%clk 0:01:40.5]} 18. Rac1
{[%clk 0:01:11.6]} 18... Be4 {[%clk 0:00:55]} 19. Nd4 {[%clk 0:01:08.7]} 19...
Rxc1 {[%clk 0:00:51.4]} 20. Rxc1 {[%clk 0:01:07.8]} 20... Ne8 {[%clk 0:00:36.5]}
21. f3 {[%clk 0:00:43.5]} 21... Bf5 {[%clk 0:00:14.9]} 22. Kf2 {[%clk
0:00:40.6]} 22... Bd7 {[%clk 0:00:11.9]} 23. Rc4 {[%clk 0:00:19.8]} 23... Rc8
{[%clk 0:00:11.5]} 24. Rxc8 {[%clk 0:00:18.6]} 24... Bxc8 {[%clk 0:00:12.4]} 25.
e4 {[%clk 0:00:16]} 25... a6 {[%clk 0:00:11.6]} 26. Ke3 {[%clk 0:00:15.5]} 26...
Nc7 {[%clk 0:00:10.9]} 27. Bc1 {[%clk 0:00:14.3]} 27... Kf8 {[%clk 0:00:11]} 28.
Nb3 {[%clk 0:00:11.9]} 28... Bh6+ {[%clk 0:00:10.9]} 29. f4 {[%clk 0:00:10.1]}
29... e5 {[%clk 0:00:11]} 30. g3 {[%clk 0:00:10.2]} 30... Ne6 {[%clk 0:00:09.8]}
31. Kf3 {[%clk 0:00:08.1]} 31... exf4 {[%clk 0:00:09.7]} 32. gxf4 {[%clk
0:00:07.8]} 32... Bg7 {[%clk 0:00:10]} 33. Be3 {[%clk 0:00:06]} 33... Ke7 {[%clk
0:00:08.9]} 34. Nc5 {[%clk 0:00:04]} 34... f5 {[%clk 0:00:07.6]} 35. e5 {[%clk
0:00:02.5]} 35... Bf8 {[%clk 0:00:05.3]} 0-1

[Event "*** Titled Tuesday Blitz"]
[Site "Chess.com"]
[Date "2021.04.20"]
[Round "5"]
[White "Zq1"]
[Black "Eloist"]
[Result "0-1"]
[WhiteElo "2535"]
[BlackElo "2382"]
[TimeControl "180+1"]
[EndTime "10:55:03 PDT"]
[Termination "Eloist won on time"]

1. d4 {[%clk 0:03:00.9]} 1... e6 {[%clk 0:03:00]} 2. c4 {[%clk 0:03:00.9]} 2...
Nf6 {[%clk 0:03:00.2]} 3. Nc3 {[%clk 0:03:00.6]} 3... Bb4 {[%clk 0:02:59.9]} 4.
e3 {[%clk 0:03:00.8]} 4... O-O {[%clk 0:02:59.5]} 5. Bd3 {[%clk 0:03:00.7]} 5...
c5 {[%clk 0:02:58.9]} 6. Ne2 {[%clk 0:02:59.6]} 6... d5 {[%clk 0:02:57.1]} 7.
cxd5 {[%clk 0:02:58.9]} 7... Nxd5 {[%clk 0:02:56.5]} 8. a3 {[%clk 0:02:49.7]}
8... cxd4 {[%clk 0:02:54.7]} 9. axb4 {[%clk 0:02:48.9]} 9... dxc3 {[%clk
0:02:54]} 10. bxc3 {[%clk 0:02:46.7]} 10... Nc6 {[%clk 0:02:51.9]} 11. O-O
{[%clk 0:02:33.3]} 11... Ne5 {[%clk 0:02:45.6]} 12. Bc2 {[%clk 0:02:29.9]} 12...
b6 {[%clk 0:02:23.8]} 13. e4 {[%clk 0:02:22]} 13... Nf6 {[%clk 0:02:20.8]} 14.
Qd4 {[%clk 0:02:12.9]} 14... Nc6 {[%clk 0:01:56.4]} 15. Qxd8 {[%clk 0:02:11.8]}
15... Rxd8 {[%clk 0:01:55.7]} 16. Be3 {[%clk 0:01:57.5]} 16... Bb7 {[%clk
0:01:49.7]} 17. b5 {[%clk 0:01:53.5]} 17... Ne5 {[%clk 0:01:45.6]} 18. Bd4
{[%clk 0:01:49.4]} 18... Nc4 {[%clk 0:01:38.9]} 19. Bxf6 {[%clk 0:01:16.2]}
19... gxf6 {[%clk 0:01:39.8]} 20. Nd4 {[%clk 0:01:15.7]} 20... Nd6 {[%clk
0:01:30.8]} 21. f3 {[%clk 0:01:08.9]} 21... e5 {[%clk 0:01:27.7]} 22. Nc6 {[%clk
0:01:00.5]} 22... Bxc6 {[%clk 0:01:25.3]} 23. bxc6 {[%clk 0:01:00.1]} 23... Rdc8
{[%clk 0:01:23.3]} 24. Bb3 {[%clk 0:01:00.2]} 24... Nb5 {[%clk 0:01:11.5]} 25.
Rfc1 {[%clk 0:00:56.9]} 25... Rd8 {[%clk 0:01:07.7]} 26. Bd5 {[%clk 0:00:54.6]}
26... Nc7 {[%clk 0:01:05.7]} 27. c4 {[%clk 0:00:54.3]} 27... Kf8 {[%clk
0:01:01.6]} 28. Ra3 {[%clk 0:00:44.8]} 28... f5 {[%clk 0:00:58.7]} 29. Rca1
{[%clk 0:00:42.1]} 29... a5 {[%clk 0:00:55.4]} 30. Rb1 {[%clk 0:00:40.7]} 30...
Ra6 {[%clk 0:00:50.9]} 31. exf5 {[%clk 0:00:32.3]} 31... Nxd5 {[%clk 0:00:41.4]}
32. Rd1 {[%clk 0:00:31.9]} 32... Ke7 {[%clk 0:00:27.8]} 33. cxd5 {[%clk
0:00:29.8]} 33... b5 {[%clk 0:00:22.5]} 34. c7 {[%clk 0:00:19.8]} 34... Rc8
{[%clk 0:00:22.5]} 35. d6+ {[%clk 0:00:18.3]} 35... Rxd6 {[%clk 0:00:20.1]} 36.
Rxd6 {[%clk 0:00:15.1]} 36... Kxd6 {[%clk 0:00:21]} 37. Rxa5 {[%clk 0:00:15.2]}
37... Kc5 {[%clk 0:00:20.7]} 38. Ra7 {[%clk 0:00:11.6]} 38... Kb6 {[%clk
0:00:20.3]} 39. Ra1 {[%clk 0:00:10.1]} 39... Rxc7 {[%clk 0:00:20.4]} 40. Kf2
{[%clk 0:00:09.9]} 40... Rc2+ {[%clk 0:00:18.1]} 41. Ke3 {[%clk 0:00:05.8]}
41... Kc5 {[%clk 0:00:16.2]} 42. g4 {[%clk 0:00:02.7]} 42... Rxh2 {[%clk
0:00:14.4]} 43. f6 {[%clk 0:00:01.8]} 43... b4 {[%clk 0:00:13.8]} 0-1

[Event "*** Titled Tuesday Blitz"]
[Site "Chess.com"]
[Date "2021.04.20"]
[Round "5"]
[White "DKmirl"]
[Black "Irishchessman16"]
[Result "0-1"]
[WhiteElo "1880"]
[BlackElo "2277"]
[TimeControl "180+1"]
[EndTime "10:55:03 PDT"]
[Termination "Irishchessman16 won on time"]

1. d4 {[%clk 0:03:00.9]} 1... d5 {[%clk 0:02:54.5]} 2. Nf3 {[%clk 0:03:00.4]}
2... Nf6 {[%clk 0:02:52.3]} 3. c4 {[%clk 0:03:00.6]} 3... e6 {[%clk 0:02:51.8]}
4. g3 {[%clk 0:03:00.6]} 4... Bb4+ {[%clk 0:02:45.6]} 5. Bd2 {[%clk 0:03:00.4]}
5... Be7 {[%clk 0:02:44.3]} 6. Bg2 {[%clk 0:02:57.6]} 6... Nbd7 {[%clk
0:02:36.4]} 7. cxd5 {[%clk 0:02:47]} 7... exd5 {[%clk 0:02:34.5]} 8. O-O {[%clk
0:02:47.6]} 8... c6 {[%clk 0:02:31.9]} 9. Nc3 {[%clk 0:02:46.6]} 9... O-O {[%clk
0:02:22]} 10. Re1 {[%clk 0:02:47]} 10... Re8 {[%clk 0:02:19.2]} 11. e4 {[%clk
0:02:46.7]} 11... Nxe4 {[%clk 0:02:17.4]} 12. Nxe4 {[%clk 0:02:47.4]} 12... dxe4
{[%clk 0:02:18.3]} 13. Rxe4 {[%clk 0:02:47.9]} 13... Nf6 {[%clk 0:02:17.3]} 14.
Re1 {[%clk 0:02:47.1]} 14... Bf5 {[%clk 0:02:07.1]} 15. Qb3 {[%clk 0:02:37.6]}
15... Qb6 {[%clk 0:02:03]} 16. Qxb6 {[%clk 0:02:30.8]} 16... axb6 {[%clk
0:02:03.9]} 17. a3 {[%clk 0:02:18.5]} 17... Nd5 {[%clk 0:02:01]} 18. Re5 {[%clk
0:02:08.8]} 18... Be6 {[%clk 0:01:45.8]} 19. Rae1 {[%clk 0:02:04.4]} 19... Bf6
{[%clk 0:01:44.4]} 20. R5e2 {[%clk 0:02:02.2]} 20... Bd7 {[%clk 0:01:41.2]} 21.
Rxe8+ {[%clk 0:01:51.7]} 21... Rxe8 {[%clk 0:01:42.1]} 22. Rxe8+ {[%clk
0:01:51.8]} 22... Bxe8 {[%clk 0:01:43]} 23. Ne5 {[%clk 0:01:52.2]} 23... Bd8
{[%clk 0:01:29]} 24. Bxd5 {[%clk 0:01:50.2]} 24... cxd5 {[%clk 0:01:29.9]} 25.
Kf1 {[%clk 0:01:44.9]} 25... Bb5+ {[%clk 0:01:29.5]} 26. Ke1 {[%clk 0:01:44.2]}
26... f6 {[%clk 0:01:25.2]} 27. Ng4 {[%clk 0:01:34.9]} 27... Kf7 {[%clk
0:01:20]} 28. Bb4 {[%clk 0:01:32.1]} 28... Bc7 {[%clk 0:01:18.4]} 29. Kd2 {[%clk
0:01:26]} 29... Ke6 {[%clk 0:01:10.3]} 30. Ne3 {[%clk 0:01:21.7]} 30... h5
{[%clk 0:01:05.2]} 31. f4 {[%clk 0:01:18.2]} 31... f5 {[%clk 0:01:04.7]} 32. Bf8
{[%clk 0:01:11.9]} 32... g5 {[%clk 0:00:59.2]} 33. fxg5 {[%clk 0:01:04.2]} 33...
f4 {[%clk 0:00:59.2]} 34. gxf4 {[%clk 0:00:17.9]} 34... Bxf4 {[%clk 0:01:00.1]}
35. g6 {[%clk 0:00:16.5]} 35... Bxh2 {[%clk 0:00:53.3]} 36. Ng2 {[%clk
0:00:13.9]} 36... Bg3 {[%clk 0:00:50.4]} 37. g7 {[%clk 0:00:13.2]} 37... Kf7
{[%clk 0:00:50]} 38. Ke3 {[%clk 0:00:13.3]} 38... Bd7 {[%clk 0:00:42.9]} 39. Kf3
{[%clk 0:00:13.1]} 39... h4 {[%clk 0:00:42.1]} 40. Nf4 {[%clk 0:00:12.3]} 40...
b5 {[%clk 0:00:32.6]} 41. Nd3 {[%clk 0:00:08.9]} 41... Bf5 {[%clk 0:00:29]} 42.
Nc5 {[%clk 0:00:06.2]} 42... Bb8 {[%clk 0:00:24.4]} 43. Kg2 {[%clk 0:00:03.5]}
43... h3+ {[%clk 0:00:23.8]} 44. Kh1 {[%clk 0:00:03.2]} 44... Bg4 {[%clk
0:00:23.5]} 0-1

[Event "*** Titled Tuesday Blitz"]
[Site "Chess.com"]
[Date "2021.04.20"]
[Round "5"]
[White "lacafi"]
[Black "KetiGrant"]
[Result "1-0"]
[WhiteElo "2218"]
[BlackElo "2333"]
[TimeControl "180+1"]
[EndTime "10:55:04 PDT"]
[Termination "lacafi won on time"]

1. d4 {[%clk 0:01:08.6]} 1... Nf6 {[%clk 0:02:57.8]} 2. Nf3 {[%clk 0:01:08.3]}
2... g6 {[%clk 0:02:58.1]} 3. c4 {[%clk 0:01:07.5]} 3... Bg7 {[%clk 0:02:59]} 4.
Nc3 {[%clk 0:01:07.7]} 4... O-O {[%clk 0:02:59.1]} 5. e4 {[%clk 0:01:07.9]} 5...
d6 {[%clk 0:02:59.7]} 6. Be2 {[%clk 0:01:08]} 6... e5 {[%clk 0:02:59.6]} 7. dxe5
{[%clk 0:01:08.1]} 7... dxe5 {[%clk 0:02:58.9]} 8. O-O {[%clk 0:01:08.8]} 8...
c6 {[%clk 0:02:55.9]} 9. Qc2 {[%clk 0:01:08.8]} 9... Qc7 {[%clk 0:02:51.9]} 10.
Rd1 {[%clk 0:01:07.9]} 10... Nh5 {[%clk 0:02:48.6]} 11. b4 {[%clk 0:01:07.5]}
11... Nf4 {[%clk 0:02:38.7]} 12. Bxf4 {[%clk 0:01:01.8]} 12... exf4 {[%clk
0:02:38.1]} 13. Rab1 {[%clk 0:01:01.2]} 13... Bg4 {[%clk 0:02:31]} 14. h3 {[%clk
0:00:57.9]} 14... Bxf3 {[%clk 0:02:30.1]} 15. Bxf3 {[%clk 0:00:58.8]} 15... Nd7
{[%clk 0:02:30.1]} 16. Be2 {[%clk 0:00:55.3]} 16... Ne5 {[%clk 0:02:29.9]} 17.
Bf1 {[%clk 0:00:55.3]} 17... f3 {[%clk 0:02:28.4]} 18. g3 {[%clk 0:00:50.9]}
18... Rae8 {[%clk 0:02:19.2]} 19. a4 {[%clk 0:00:47.9]} 19... f5 {[%clk
0:02:17]} 20. exf5 {[%clk 0:00:46.7]} 20... Rxf5 {[%clk 0:02:17.9]} 21. Ne4
{[%clk 0:00:41.4]} 21... Nf7 {[%clk 0:01:44.4]} 22. c5 {[%clk 0:00:40.2]} 22...
Rfe5 {[%clk 0:01:35.1]} 23. Nd6 {[%clk 0:00:33.4]} 23... Nxd6 {[%clk 0:01:33.2]}
24. Rxd6 {[%clk 0:00:33.1]} 24... Kh8 {[%clk 0:01:31.7]} 25. Rbd1 {[%clk
0:00:29.8]} 25... R5e7 {[%clk 0:01:14.2]} 26. Qb3 {[%clk 0:00:28]} 26... Rf8
{[%clk 0:01:13.7]} 27. R1d3 {[%clk 0:00:20.5]} 27... Be5 {[%clk 0:00:54.2]} 28.
Re6 {[%clk 0:00:20.2]} 28... Rxe6 {[%clk 0:00:38.6]} 29. Qxe6 {[%clk 0:00:19.8]}
29... Bxg3 {[%clk 0:00:38.2]} 30. Rd7 {[%clk 0:00:19.9]} 30... Bxf2+ {[%clk
0:00:36.9]} 31. Kxf2 {[%clk 0:00:19.7]} 31... Qh2+ {[%clk 0:00:36.3]} 32. Ke1
{[%clk 0:00:18.9]} 32... Qg3+ {[%clk 0:00:27.7]} 33. Kd1 {[%clk 0:00:18.6]}
33... f2 {[%clk 0:00:25.8]} 34. Qe7 {[%clk 0:00:11.8]} 34... Qb3+ {[%clk
0:00:17.8]} 35. Ke2 {[%clk 0:00:11.3]} 35... Qf3+ {[%clk 0:00:16.8]} 36. Kd2
{[%clk 0:00:10.5]} 36... Qf4+ {[%clk 0:00:14.6]} 37. Kd1 {[%clk 0:00:10.2]}
37... Qf3+ {[%clk 0:00:10.6]} 38. Kd2 {[%clk 0:00:10.4]} 38... Qf4+ {[%clk
0:00:10.5]} 39. Kd1 {[%clk 0:00:10.2]} 39... Qf3+ {[%clk 0:00:07.8]} 40. Qe2
{[%clk 0:00:10.1]} 40... Qb3+ {[%clk 0:00:06.6]} 41. Qc2 {[%clk 0:00:10.4]}
41... Qf3+ {[%clk 0:00:05.8]} 42. Kc1 {[%clk 0:00:10.3]} 42... Qf4+ {[%clk
0:00:05.1]} 43. Qd2 {[%clk 0:00:09.5]} 1-0

[Event "*** Titled Tuesday Blitz"]
[Site "Chess.com"]
[Date "2021.04.20"]
[Round "5"]
[White "frederiksvane"]
[Black "Azerichess"]
[Result "1-0"]
[WhiteElo "2756"]
[BlackElo "2989"]
[TimeControl "180+1"]
[EndTime "10:55:05 PDT"]
[Termination "frederiksvane won by resignation"]

1. e4 {[%clk 0:03:00.9]} 1... c6 {[%clk 0:02:59.4]} 2. Nf3 {[%clk 0:03:00.5]}
2... d5 {[%clk 0:02:59.7]} 3. exd5 {[%clk 0:03:01.4]} 3... cxd5 {[%clk
0:02:59.8]} 4. d4 {[%clk 0:03:02.3]} 4... Nc6 {[%clk 0:02:57.6]} 5. c3 {[%clk
0:03:02.7]} 5... g6 {[%clk 0:02:50.2]} 6. Bd3 {[%clk 0:03:00.1]} 6... Bg7 {[%clk
0:02:50.2]} 7. O-O {[%clk 0:03:00.5]} 7... e6 {[%clk 0:02:46.1]} 8. h4 {[%clk
0:02:53.2]} 8... h6 {[%clk 0:02:43.4]} 9. Re1 {[%clk 0:02:48.6]} 9... Nge7
{[%clk 0:02:43.3]} 10. Nbd2 {[%clk 0:02:44.1]} 10... b6 {[%clk 0:02:41.7]} 11.
Nf1 {[%clk 0:02:43.3]} 11... Bb7 {[%clk 0:02:41.7]} 12. Bf4 {[%clk 0:02:36.7]}
12... Qd7 {[%clk 0:02:32.6]} 13. a4 {[%clk 0:02:31.2]} 13... f6 {[%clk
0:02:30.7]} 14. N1h2 {[%clk 0:02:15.4]} 14... Kf7 {[%clk 0:02:19.4]} 15. Qd2
{[%clk 0:02:03.1]} 15... Rae8 {[%clk 0:02:15.7]} 16. Re2 {[%clk 0:02:01]} 16...
Nf5 {[%clk 0:02:09.9]} 17. Rae1 {[%clk 0:01:57.5]} 17... Re7 {[%clk 0:01:53.3]}
18. Ng4 {[%clk 0:01:45.4]} 18... Qe8 {[%clk 0:01:49.5]} 19. c4 {[%clk 0:01:29]}
19... Ncxd4 {[%clk 0:01:33.8]} 20. Nxd4 {[%clk 0:01:23.4]} 20... Nxd4 {[%clk
0:01:34.7]} 21. Bxg6+ {[%clk 0:01:24.2]} 21... Kxg6 {[%clk 0:01:34.8]} 22. Qxd4
{[%clk 0:01:24.9]} 22... h5 {[%clk 0:01:20.3]} 23. Ne3 {[%clk 0:01:07.2]} 23...
e5 {[%clk 0:01:17.7]} 24. Qd3+ {[%clk 0:01:07.4]} 24... e4 {[%clk 0:01:06.6]}
25. Qd2 {[%clk 0:01:01.5]} 25... dxc4 {[%clk 0:01:03.7]} 26. Nxc4 {[%clk
0:00:58.3]} 26... Qc6 {[%clk 0:01:01.8]} 27. Nd6 {[%clk 0:00:47.7]} 27... Rd8
{[%clk 0:00:55.3]} 28. Qe3 {[%clk 0:00:47.9]} 28... Kh7 {[%clk 0:00:38.1]} 29.
Nxe4 {[%clk 0:00:13.1]} 29... Rde8 {[%clk 0:00:30]} 30. Qd3 {[%clk 0:00:07]}
30... Kg8 {[%clk 0:00:26.8]} 31. f3 {[%clk 0:00:04.5]} 31... Qd5 {[%clk
0:00:13.5]} 32. Qxd5+ {[%clk 0:00:03.5]} 32... Bxd5 {[%clk 0:00:14.4]} 33. Bd2
{[%clk 0:00:02.7]} 33... f5 {[%clk 0:00:14.1]} 34. Nc3 {[%clk 0:00:01.4]} 34...
Bxc3 {[%clk 0:00:14.1]} 35. Rxe7 {[%clk 0:00:01.3]} 35... Bd4+ {[%clk
0:00:14.7]} 36. Kh2 {[%clk 0:00:01]} 36... Rc8 {[%clk 0:00:10.4]} 37. Re8+
{[%clk 0:00:01.4]} 37... Kf7 {[%clk 0:00:09.6]} 38. Rxc8 {[%clk 0:00:01.6]}
38... Bc5 {[%clk 0:00:08.4]} 39. Rc7+ {[%clk 0:00:02]} 39... Kf6 {[%clk
0:00:08.2]} 40. Rxc5 {[%clk 0:00:02.6]} 1-0

[Event "*** Titled Tuesday Blitz"]
[Site "Chess.com"]
[Date "2021.04.20"]
[Round "5"]
[White "crazy_but_lazy"]
[Black "kingofthenil"]
[Result "0-1"]
[WhiteElo "2431"]
[BlackElo "2627"]
[TimeControl "180+1"]
[EndTime "10:55:05 PDT"]
[Termination "kingofthenil won by resignation"]

1. d4 {[%clk 0:03:00.3]} 1... e6 {[%clk 0:03:00.3]} 2. c4 {[%clk 0:02:59.8]}
2... Ke7 {[%clk 0:03:01.2]} 3. Nc3 {[%clk 0:02:59.2]} 3... Ke8 {[%clk
0:03:01.5]} 4. e4 {[%clk 0:02:59.3]} 4... Bb4 {[%clk 0:03:01.5]} 5. f4 {[%clk
0:02:56]} 5... d5 {[%clk 0:02:55.7]} 6. cxd5 {[%clk 0:02:49.2]} 6... exd5 {[%clk
0:02:56.6]} 7. e5 {[%clk 0:02:46.6]} 7... Bf5 {[%clk 0:02:56.2]} 8. Nf3 {[%clk
0:02:45]} 8... Ne7 {[%clk 0:02:55.7]} 9. Bd3 {[%clk 0:02:36.1]} 9... Qd7 {[%clk
0:02:49.2]} 10. O-O {[%clk 0:02:33.8]} 10... Bxc3 {[%clk 0:02:46.5]} 11. bxc3
{[%clk 0:02:27.1]} 11... Nbc6 {[%clk 0:02:39.1]} 12. Ba3 {[%clk 0:02:11.3]}
12... b6 {[%clk 0:02:32.2]} 13. Nh4 {[%clk 0:01:49.7]} 13... g6 {[%clk
0:02:14.5]} 14. Qc2 {[%clk 0:01:42]} 14... Kd8 {[%clk 0:02:01.5]} 15. Rad1
{[%clk 0:01:04.9]} 15... Bxd3 {[%clk 0:02:01.5]} 16. Qxd3 {[%clk 0:01:03.5]}
16... Nf5 {[%clk 0:02:01.4]} 17. Nxf5 {[%clk 0:01:00.7]} 17... gxf5 {[%clk
0:01:52.9]} 18. c4 {[%clk 0:00:59.7]} 18... Rg8 {[%clk 0:01:40.3]} 19. Rd2
{[%clk 0:00:49.6]} 19... Kc8 {[%clk 0:01:37.8]} 20. Rc1 {[%clk 0:00:42.5]} 20...
Kb7 {[%clk 0:01:36.8]} 21. Qc3 {[%clk 0:00:22.7]} 21... Rg4 {[%clk 0:01:24.8]}
22. g3 {[%clk 0:00:22]} 22... Rag8 {[%clk 0:01:18.8]} 23. Qf3 {[%clk 0:00:22.4]}
23... dxc4 {[%clk 0:01:06.2]} 24. Rxc4 {[%clk 0:00:21.4]} 24... R8g6 {[%clk
0:00:59.7]} 25. d5 {[%clk 0:00:20.6]} 25... Nxe5 {[%clk 0:00:52.6]} 26. fxe5
{[%clk 0:00:16.9]} 26... Rxc4 {[%clk 0:00:53.5]} 27. d6+ {[%clk 0:00:17.5]}
27... c6 {[%clk 0:00:51.7]} 28. Bb2 {[%clk 0:00:15.2]} 28... f4 {[%clk
0:00:47.3]} 29. Kg2 {[%clk 0:00:15.2]} 29... fxg3 {[%clk 0:00:44.6]} 30. hxg3
{[%clk 0:00:16.1]} 30... Rcg4 {[%clk 0:00:44.9]} 31. Rf2 {[%clk 0:00:16.6]}
31... h5 {[%clk 0:00:42.1]} 32. Qxf7 {[%clk 0:00:15.6]} 32... Rxg3+ {[%clk
0:00:42.7]} 33. Kf1 {[%clk 0:00:15.8]} 33... Rg7 {[%clk 0:00:11]} 34. e6 {[%clk
0:00:13.4]} 34... Rxf7 {[%clk 0:00:08.7]} 35. exf7 {[%clk 0:00:14.3]} 35... Qh3+
{[%clk 0:00:08.2]} 36. Ke2 {[%clk 0:00:14.8]} 36... Re3+ {[%clk 0:00:08.7]} 37.
Kd2 {[%clk 0:00:15.4]} 37... Rd3+ {[%clk 0:00:09.2]} 38. Kc2 {[%clk 0:00:16]}
38... Rf3 {[%clk 0:00:07.2]} 39. f8=Q {[%clk 0:00:16.1]} 39... Rxf8 {[%clk
0:00:07.1]} 40. Rxf8 {[%clk 0:00:15.9]} 40... Qh2+ {[%clk 0:00:07.7]} 41. Kb3
{[%clk 0:00:16.2]} 41... Qxd6 {[%clk 0:00:08.6]} 42. Rf7+ {[%clk 0:00:16.8]}
42... Ka6 {[%clk 0:00:09.1]} 43. Rf5 {[%clk 0:00:16.2]} 43... Qe6+ {[%clk
0:00:09.6]} 44. Ka3 {[%clk 0:00:16.5]} 44... Qxf5 {[%clk 0:00:09.6]} 0-1